bitfinex-derivatives/quotes_SOLF0:USTF0_20241222
["timestamp","ask_amount","ask_price","bid_price","bid_amount"]
[1734870363484,0.94394629,187.04,186.94,61.56006402]
[1734870363683,0.94394629,187.04,186.94,58.88346402]
[1734870363887,2.62964629,187.04,186.94,58.88346402]
[1734870364191,0.94394629,187.03,186.94,58.88346402]
[1734870364390,0.94394629,187.03,186.95,13.48982793]
[1734870365093,2.6763,186.96,186.9,58.88346402]
[1734870365288,2.52,186.99,186.9,58.88346402]
[1734870365489,2.52,187.0,186.9,58.88346402]
[1734870366092,2.52,187.0,186.92,58.88346402]
[1734870366594,2.6762,186.98,186.93,2.6766]
[1734870366793,2.52,187.0,186.92,58.88346402]
[1734870366989,2.6762,186.97,186.92,61.56026402]
[1734870367795,2.6762,186.97,186.92,58.88346402]
[1734870367995,2.6762,186.97,186.93,2.6768]
[1734870368197,2.6765,186.95,186.93,13.49507237]
[1734870368391,2.52,187.0,186.93,13.49507237]
[1734870368794,0.94420999,186.99,186.93,13.49507237]
[1734870369197,2.6766,186.94,186.93,13.49507237]
[1734870369493,2.52,186.95,186.89,58.88346402]
[1734870369892,2.6769,186.92,186.89,58.88346402]
[1734870370293,2.52,186.95,186.89,58.88346402]
[1734870370693,2.52,186.95,186.88,58.88346402]
[1734870371200,2.6769,186.93,186.88,61.56086402]
[1734870371697,2.6769,186.93,186.88,2.6774]
[1734870371995,2.677,186.92,186.87,60.56116402]
[1734870372597,2.6772,186.91,186.87,60.56116402]
[1734870372992,2.6773,186.9,186.88,13.49825848]
[1734870373198,2.52,186.95,186.88,13.49825848]
[1734870373694,2.6773,186.89,186.88,13.49825848]
[1734870373997,2.6773,186.89,186.87,1.6777]
[1734870376294,2.6773,186.89,186.84,2.678]
[1734870378289,2.52,186.95,186.84,2.678]
[1734870379688,2.6779,186.86,186.83,3.3312]
[1734870379892,2.52,186.9,186.82,60.54076402]
[1734870380199,2.52,186.89,186.82,60.54076402]
[1734870380396,2.52,186.88,186.82,60.54076402]
[1734870380599,2.52,186.87,186.82,60.54076402]
[1734870380996,2.52,186.87,186.82,1.6573]
[1734870381197,2.52,186.87,186.78,3.2822]
[1734870381396,0.94490681,186.86,186.78,3.2822]
[1734870381599,0.94490681,186.86,186.76,58.88346402]
[1734870382098,2.52,186.87,186.76,58.88346402]
[1734870382297,0.94492754,186.86,186.74,1.7038]
[1734870382493,2.64482754,186.86,186.74,1.7038]
[1734870382802,0.94492754,186.85,186.74,1.7038]
[1734870383401,2.52,186.84,186.74,1.7038]
[1734870383796,5.1981,186.84,186.75,2.52]
[1734870384898,2.6781,186.84,186.75,2.52]
[1734870385091,2.52,186.86,186.75,2.52]
[1734870386205,2.6782,186.84,186.8,2.6785]
[1734870386503,2.6782,186.84,186.81,1.6]
[1734870387004,2.52,186.87,186.82,2.6783]
[1734870388401,2.6778,186.86,186.82,2.6783]
[1734870388702,2.52,186.87,186.78,13.45757849]
[1734870388905,2.52,186.87,186.77,81.7737785]
[1734870389404,2.52,186.87,186.77,79.0947785]
[1734870389805,2.52,186.87,186.76,1.6]
[1734870390201,2.52,186.87,186.77,2.52]
[1734870390503,2.678,186.84,186.79,2.6787]
[1734870390703,2.678,186.84,186.77,2.52]
[1734870391806,2.6779,186.85,186.77,2.52]
[1734870392006,2.52,186.87,186.77,2.52]
[1734870392205,2.52,186.9,186.84,2.6779]
[1734870392607,2.52,186.9,186.85,1.6077]
[1734870393401,1.6982,186.96,186.87,2.6776]
[1734870393708,3.4644115,186.95,186.87,2.6776]
[1734870393909,2.52,186.95,186.85,1.6077]
[1734870394103,2.6769,186.92,186.86,2.6777]
[1734870395807,2.677,186.91,186.86,2.6777]
[1734870396008,3.67205214,187.02,186.85,1.6077]
[1734870396216,3.46423332,187.01,186.85,1.6077]
[1734870396417,0.94423332,187.0,186.85,1.6077]
[1734870396718,2.6766,186.94,186.85,1.6077]
[1734870397019,2.6766,186.94,186.86,13.45030225]
[1734870397510,2.6766,186.94,186.89,2.6772]
[1734870398610,2.6766,186.94,186.86,58.88346402]
[1734870398818,2.6764,186.96,186.91,2.6769]
[1734870399411,2.6764,186.96,186.88,2.52]
[1734870399610,2.6764,186.96,186.89,1.6927]
[1734870401220,2.6764,186.96,186.91,2.6769]
[1734870401417,2.6764,186.96,186.92,1.573]
[1734870402817,2.6764,186.96,186.92,4.2499]
[1734870403411,2.6762,186.98,186.92,1.573]
[1734870403617,2.52,187.01,186.92,1.573]
[1734870404119,2.6761,186.98,186.92,1.573]
[1734870404922,2.6759,186.99,186.95,2.6764]
[1734870405519,1.6316,187.07,186.93,2.52]
[1734870405725,2.52,187.06,186.93,2.52]
[1734870406125,3.46394163,187.06,186.93,2.52]
[1734870406326,0.94394163,187.05,186.93,2.52]
[1734870406625,2.6755,187.02,186.93,2.52]
[1734870407127,2.6755,187.02,186.97,2.6761]
[1734870408523,2.6754,187.03,186.93,2.52]
[1734870409418,2.52,187.07,187.01,2.6755]
[1734870409626,2.52,187.09,186.98,2.52]
[1734870409827,0.94376186,187.08,186.99,7.6119]
[1734870410224,2.52,187.09,187.02,2.6753]
[1734870410428,2.52,187.09,186.99,7.6119]
[1734870411726,2.52,187.14,186.99,7.6119]
[1734870412028,0.9435531,187.13,186.99,7.6119]
[1734870412226,2.52,187.16,186.99,23.7019]
[1734870412427,2.6739,187.14,187.09,2.6744]
[1734870413027,2.52,187.16,187.06,4.8975]
[1734870413229,2.52,187.16,187.06,3.2916]
[1734870413230,0.94340055,187.15,187.06,3.2916]
[1734870413432,2.52,187.16,187.06,1.7271]
[1734870413632,0.94353665,187.15,187.06,1.7271]
[1734870413833,2.6747,187.08,187.06,1.7271]
[1734870415230,2.52,187.1,187.01,1.6502]
[1734870415430,0.94366345,187.09,187.01,1.6502]
[1734870415632,2.52,187.1,187.01,1.6502]
[1734870415832,2.6749,187.07,187.01,1.6502]
[1734870416929,2.6749,187.07,187.01,4.3258]
[1734870417631,2.6749,187.06,187.01,1.6502]
[1734870417834,2.52,187.1,187.01,1.6502]
[1734870418034,0.94373417,187.09,187.01,1.6502]
[1734870419432,2.6749,187.06,187.01,1.6502]
[1734870420538,2.52,187.1,187.01,1.6502]
[1734870420838,2.6753,187.04,187.01,1.6502]
[1734870421132,2.6751,187.05,187.01,1.6502]
[1734870422534,55.94450806,187.18,187.01,4.3257]
[1734870422836,3.4637135,187.17,187.01,1.6502]
[1734870423137,2.6746,187.09,187.03,2.6753]
[1734870423340,2.52,187.09,187.03,2.6753]
[1734870423542,2.52,187.11,187.03,2.6753]
[1734870423739,2.52,187.11,187.01,4.1702]
[1734870423939,34.51800806,187.18,187.02,1.6169]
[1734870424133,3.46355962,187.17,187.02,1.6169]
[1734870424339,0.94355962,187.16,187.02,1.6169]
[1734870424833,2.674,187.13,187.07,2.6747]
[1734870425838,2.6742,187.12,187.06,2.6749]
[1734870426035,2.52,187.15,187.02,1.6169]
[1734870426234,0.94352531,187.14,187.02,1.6169]
[1734870426539,0.94352531,187.14,187.04,2.6752]
[1734870427332,3.46352531,187.13,187.04,2.6752]
[1734870427529,2.52,187.13,187.04,2.6752]
[1734870427740,2.6745,187.09,187.04,2.6752]
[1734870428937,5.1939,187.13,187.02,1.6169]
[1734870429240,2.52,187.13,187.02,1.6169]
[1734870429442,2.6741,187.12,187.07,2.6747]
[1734870429739,2.52,187.13,187.02,1.6169]
[1734870430434,2.6746,187.09,187.04,2.6751]
[1734870430640,2.6746,187.09,187.02,1.6169]
[1734870431041,2.6746,187.09,187.04,2.6751]
[1734870431941,2.52,187.13,187.04,2.6751]
[1734870432139,0.94356197,187.12,187.01,1.6502]
[1734870432345,4.11686197,187.12,187.01,1.6502]
[1734870432546,0.94356197,187.11,187.01,1.6502]
[1734870434046,1.11910128,187.07,187.01,1.6502]
[1734870434747,3.1733,187.12,187.01,1.6502]
[1734870435048,3.46369269,187.11,187.01,1.6502]
[1734870435246,2.52,187.11,187.01,1.6502]
[1734870435746,0.94365878,187.1,186.98,58.88346402]
[1734870436047,0.94365878,187.1,187.0,58.88346402]
[1734870436048,2.6755,187.03,187.0,58.88346402]
[1734870436541,2.52,187.05,187.0,58.88346402]
[1734870436746,2.52,187.08,187.0,58.88346402]
[1734870437346,2.52,187.08,186.99,2.52]
[1734870437644,2.52,187.08,187.01,2.6756]
[1734870438451,2.675,187.05,186.97,58.88346402]
[1734870438648,2.52,187.08,186.97,58.88346402]
[1734870438649,2.52,187.08,186.97,61.40346402]
[1734870438850,2.52,187.08,186.99,58.88346402]
[1734870438851,0.94381305,187.07,186.99,58.88346402]
[1734870439053,2.6756,187.02,186.99,58.88346402]
[1734870439551,2.52,187.04,186.99,58.88346402]
[1734870439749,2.52,187.04,186.97,58.88346402]
[1734870440654,2.6757,187.01,186.97,58.88346402]
[1734870440852,2.6757,187.01,186.95,63.28796402]
[1734870442152,2.6757,187.01,186.96,13.4901151]
[1734870442953,2.6759,186.99,186.96,13.4901151]
[1734870443452,2.6759,186.99,186.95,58.88346402]
[1734870443652,5.1958,187.0,186.95,61.55996402]
[1734870444955,2.52,187.0,186.96,2.6763]
[1734870445258,2.52,187.03,186.95,58.88346402]
[1734870445551,2.52,187.03,186.98,2.676]
[1734870445757,2.52,187.03,186.95,58.88346402]
[1734870445952,2.52,187.03,186.96,13.48588781]
[1734870446955,2.6756,187.02,186.97,2.6762]
[1734870447154,2.52,187.03,186.95,58.88346402]
[1734870447854,2.52,187.02,186.96,2.6763]
[1734870449448,2.52,187.02,186.94,58.88346402]
[1734870449858,2.6758,187.0,186.95,2.6765]
[1734870450357,2.6758,187.0,186.95,16.16116262]
[1734870451257,2.6758,187.0,186.95,2.6765]
[1734870451760,5.1955,187.02,186.97,2.6761]
[1734870453155,2.52,187.03,186.94,58.88346402]
[1734870453462,2.6753,187.04,186.95,58.88346402]
[1734870453757,2.6753,187.04,186.99,2.6758]
[1734870453956,2.52,187.05,186.95,58.88346402]
[1734870454760,2.6752,187.04,187.0,2.6757]
[1734870454956,2.52,187.05,186.95,58.88346402]
[1734870455557,2.6754,187.03,186.99,2.6759]
[1734870455860,2.52,187.05,186.95,58.88346402]
[1734870456061,2.52,187.05,186.97,58.88346402]
[1734870456262,2.52,187.05,186.97,61.55956402]
[1734870456863,2.6756,187.02,186.97,2.6761]
[1734870457662,2.52,187.05,186.96,2.6763]
[1734870458756,2.6757,187.01,186.96,2.6763]
[1734870459159,2.6755,187.02,186.95,58.88346402]
[1734870459657,2.6755,187.02,186.94,61.40346402]
[1734870459855,2.6755,187.02,186.97,2.6761]
[1734870461164,2.6756,187.01,186.97,2.6761]
[1734870461756,2.52,187.05,186.95,58.88346402]
[1734870462071,2.6759,186.99,186.95,61.55986402]
[1734870462567,2.52,187.01,186.95,61.55996402]
[1734870462759,2.52,187.01,186.95,58.88346402]
[1734870462966,2.52,187.01,186.96,13.47768928]
[1734870463758,2.52,187.01,186.94,88.94755543]
[1734870463759,2.6762,186.98,186.94,88.94755543]
[1734870463963,2.6762,186.98,186.93,63.25956402]
[1734870464162,2.52,186.97,186.93,58.88346402]
[1734870464868,3.328,187.05,186.93,58.88346402]
[1734870465068,3.46408358,187.04,186.93,58.88346402]
[1734870465263,3.46408358,187.04,186.92,88.94755543]
[1734870465264,2.6757,187.01,186.94,2.6766]
[1734870465470,2.6757,187.01,186.91,61.40346402]
[1734870465868,2.6757,187.01,186.95,2.6763]
[1734870466167,2.52,187.04,186.91,61.40346402]
[1734870466367,2.52,187.04,186.94,58.88346402]
[1734870467068,1.6343,187.05,186.94,58.88346402]
[1734870467266,2.6759,187.0,186.95,95.27350868]
[1734870467470,2.52,187.0,186.95,92.59700868]
[1734870468272,2.52,187.0,186.94,58.88346402]
[1734870468466,2.6761,186.98,186.94,58.88346402]
[1734870470062,2.52,187.0,186.95,13.50154286]
[1734870470267,2.6759,186.99,186.95,13.50154286]
[1734870471171,2.6759,186.99,186.96,13.50154286]
[1734870471672,2.6761,186.98,186.96,13.50154286]
[1734870471873,2.6761,186.98,186.95,58.88346402]
[1734870472277,2.52,187.0,186.95,58.88346402]
[1734870472476,2.6763,186.96,186.95,58.88346402]
[1734870474273,2.6763,186.96,186.93,58.88346402]
[1734870474574,5.1963,186.96,186.93,58.88346402]
[1734870475173,2.6765,186.95,186.94,13.51225043]
[1734870476275,2.6765,186.95,186.92,58.88346402]
[1734870476776,2.52,186.96,186.92,58.88346402]
[1734870477574,2.52,186.96,186.93,13.51179525]
[1734870478474,1.7219,187.04,186.94,13.51179525]
[1734870478674,2.52,187.03,186.94,13.51179525]
[1734870479177,2.52,187.03,186.95,13.51179525]
[1734870479975,0.94405059,187.02,186.95,13.51179525]
[1734870480174,0.94405059,187.02,186.96,92.64890933]
[1734870480377,0.94412941,187.01,186.96,92.64890933]
[1734870480675,2.52,187.03,186.96,92.64890933]
[1734870480878,0.94407996,187.02,186.96,92.64890933]
[1734870481074,0.94407996,187.02,186.92,58.88346402]
[1734870481979,2.52,187.03,186.93,92.65041662]
[1734870482176,0.94406197,187.02,186.93,92.65041662]
[1734870482678,2.52,187.01,186.93,92.65041662]
[1734870482874,2.52,187.01,186.94,13.50678104]
[1734870483378,1.6343,187.05,186.94,13.50678104]
[1734870483577,3.4640062,187.04,186.94,13.50678104]
[1734870483873,0.9440062,187.03,186.94,13.50678104]
[1734870484079,0.9440062,187.03,186.95,92.64838354]
[1734870484080,0.94403024,187.03,186.95,92.64838354]
[1734870484675,2.52,187.04,186.95,92.64838354]
[1734870484877,0.94403508,187.03,186.95,92.64838354]
[1734870485382,0.94403508,187.03,186.94,58.88346402]
[1734870485974,1.576,187.02,186.94,58.88346402]
[1734870486173,0.9441629,187.01,186.94,58.88346402]
[1734870486373,2.52,187.0,186.94,58.88346402]
[1734870486572,2.52,187.0,186.92,58.88346402]
[1734870486773,0.94419176,186.99,186.92,58.88346402]
[1734870486974,2.52,187.0,186.92,58.88346402]
[1734870487181,1.576,187.02,187.0,43.85850824]
[1734870487382,18.6,187.01,187.0,41.26860824]
[1734870487583,18.6,187.01,187.0,38.49150824]
[1734870488087,19.53706387,187.01,187.0,38.49150824]
[1734870488288,33.55731998,187.01,187.0,38.49150824]
[1734870488689,41.00629307,187.01,187.0,38.49150824]
[1734870489190,33.55731998,187.01,187.0,38.49150824]
[1734870489590,33.5573284,187.01,187.0,38.49150824]
[1734870489790,32.62025611,187.01,187.0,38.49150824]
[1734870489989,33.55735497,187.01,187.0,38.49150824]
[1734870490591,33.55736225,187.01,187.0,38.49150824]
[1734870491393,14.95736225,187.01,187.0,38.49150824]
[1734870491689,3.45710614,187.01,187.0,38.49150824]
[1734870492591,3.45684417,187.01,187.0,38.49150824]
[1734870493194,2.52,187.01,187.0,38.49150824]
[1734870493588,1.98883359,187.02,187.0,38.49150824]
[1734870493790,2.52,187.01,187.0,38.49150824]
[1734870496291,1.98883359,187.02,187.0,38.49150824]
[1734870496597,16.08,187.11,187.0,38.49150824]
[1734870496790,3.45664825,187.1,187.01,3.2344]
[1734870496991,0.93664825,187.09,187.01,3.2344]
[1734870497296,2.52,187.08,187.01,3.2344]
[1734870497490,0.93664825,187.07,187.01,3.2344]
[1734870497794,2.52,187.08,187.01,3.2344]
[1734870498094,34.52987985,187.12,187.01,3.2344]
[1734870498294,2.52,187.11,187.01,3.2344]
[1734870498594,0.93647894,187.1,187.01,3.2344]
[1734870498892,0.93647894,187.09,187.01,4.8986]
[1734870500392,2.52,187.1,187.01,4.8986]
[1734870500593,0.93644611,187.09,187.01,4.8986]
[1734870502094,0.93644611,187.09,187.01,43.39010824]
[1734870502992,2.52,187.1,187.01,43.39010824]
[1734870503197,0.9364516,187.09,187.01,43.39010824]
[1734870506402,2.52,187.1,187.01,43.39010824]
[1734870506596,0.93641765,187.09,187.01,43.39010824]
[1734870510902,2.52,187.1,187.01,43.39010824]
[1734870511101,0.93641733,187.09,187.01,43.39010824]
[1734870513192,2.52,187.08,187.01,43.39010824]
[1734870513391,2.6749,187.06,187.01,43.39010824]
[1734870513601,2.52,187.08,187.01,43.39010824]
[1734870514003,2.52,187.07,187.01,43.39010824]
[1734870514603,34.52172445,187.15,187.01,43.39010824]
[1734870514902,3.45639362,187.14,187.01,43.39010824]
[1734870515104,2.6747,187.08,187.02,2.6754]
[1734870515398,2.52,187.09,187.02,2.6754]
[1734870516404,2.6748,187.07,187.02,2.6754]
[1734870519407,2.52,187.09,187.02,2.6754]
[1734870519611,2.6749,187.06,187.02,2.6754]
[1734870521508,2.675,187.05,187.01,46.06570824]
[1734870522009,2.52,187.09,187.01,46.06570824]
[1734870522409,2.675,187.06,187.01,46.06570824]
[1734870522709,2.52,187.09,187.01,46.06570824]
[1734870523309,34.52172445,187.15,187.01,46.06570824]
[1734870523510,2.675,187.06,187.01,46.06570824]
[1734870524615,2.675,187.05,187.01,46.06570824]
[1734870526114,2.6755,187.02,187.01,43.39010824]
[1734870527615,2.6755,187.02,187.01,41.72590824]
[1734870540223,2.52,187.04,187.01,41.72590824]
[1734870540425,5.1953,187.04,187.01,41.72590824]
[1734870543027,2.6753,187.04,187.01,41.72590824]
[1734870543225,5.1953,187.04,187.01,41.72590824]
[1734870543619,2.6754,187.03,187.01,41.72590824]
[1734870544429,2.52,187.04,187.01,41.72590824]
[1734870544629,2.6755,187.02,187.01,41.72590824]
[1734870544922,2.6755,187.02,187.01,38.49150824]
[1734870547129,3.6122766,187.02,187.01,38.49150824]
[1734870547446,3.61230993,187.02,187.01,38.49150824]
[1734870549734,3.61230993,187.02,187.01,35.89610824]
[1734870550234,3.61243782,187.02,187.01,35.89610824]
[1734870552733,3.612494,187.02,187.01,35.89610824]
[1734870553435,3.61249928,187.02,187.01,35.89610824]
[1734870555435,3.6125513,187.02,187.01,35.89610824]
[1734870556238,6.1325513,187.02,187.01,35.89610824]
[1734870556535,3.6125513,187.02,187.01,35.89610824]
[1734870556736,6.1325513,187.02,187.01,35.89610824]
[1734870561244,6.13233546,187.02,187.01,35.89610824]
[1734870563357,6.13241033,187.02,187.01,35.89610824]
[1734870566450,3.61241033,187.02,187.01,35.89610824]
[1734870566646,6.13241033,187.02,187.01,35.89610824]
[1734870567855,2.6765,186.96,186.93,1.6978]
[1734870568048,5.1965,186.96,186.93,1.6978]
[1734870568855,0.0798,186.96,186.93,1.6978]
[1734870569055,2.52,186.98,186.93,1.6978]
[1734870569554,2.6766,186.95,186.93,1.6978]
[1734870571250,2.6761,186.98,186.93,1.6978]
[1734870571454,2.52,186.99,186.93,1.6978]
[1734870572555,2.6762,186.97,186.93,1.6978]
[1734870572948,0.0794,186.97,186.93,1.6978]
[1734870573148,2.52,186.99,186.93,1.6978]
[1734870573556,5.1959,186.99,186.93,1.6978]
[1734870573958,2.6759,186.99,186.93,1.6978]
[1734870574152,2.6759,186.99,186.93,4.3744]
[1734870574557,2.6761,186.98,186.93,4.3744]
[1734870574957,2.52,187.0,186.94,13.50448687]
[1734870575456,2.6763,186.96,186.94,13.50448687]
[1734870575852,2.52,187.0,186.94,13.50448687]
[1734870576056,2.6764,186.96,186.93,60.58126402]
[1734870577050,2.6762,186.97,186.93,60.58126402]
[1734870577255,2.6762,186.97,186.93,1.6978]
[1734870577852,5.3494,187.08,187.02,30.69990824]
[1734870578058,3.45668114,187.07,187.02,30.69990824]
[1734870578359,0.93668114,187.06,187.02,30.69990824]
[1734870578963,2.52,187.06,187.02,30.69990824]
[1734870579264,5.195,187.06,187.03,3.2686]
[1734870579862,2.52,187.06,187.03,3.2686]
[1734870580660,19.29207839,187.14,187.03,3.2686]
[1734870580865,3.4564589,187.13,187.03,3.2686]
[1734870581163,2.6749,187.07,187.03,3.2686]
[1734870582166,2.6749,187.06,187.03,3.2686]
[1734870583263,2.52,187.08,187.03,3.2686]
[1734870583463,2.6748,187.07,187.03,3.2686]
[1734870583664,34.52172445,187.15,187.03,3.2686]
[1734870583868,2.6748,187.07,187.03,3.2686]
[1734870584163,2.52,187.09,187.03,3.2686]
[1734870584668,5.1946,187.09,187.03,3.2686]
[1734870584864,2.52,187.09,187.03,3.2686]
[1734870585464,34.52172445,187.15,187.03,3.2686]
[1734870585660,3.43636589,187.14,187.03,3.2686]
[1734870585864,0.93636589,187.13,187.03,3.2686]
[1734870586061,2.6745,187.1,187.03,5.9439]
[1734870586569,5.1741,187.12,187.03,3.2686]
[1734870587168,5.1741,187.12,187.05,2.675]
[1734870587368,2.6743,187.11,187.06,1.7144]
[1734870591062,2.6742,187.11,187.06,1.7144]
[1734870593275,2.5,187.13,187.06,1.7144]
[1734870593469,2.5,187.13,187.03,3.2686]
[1734870593666,0.93625031,187.12,187.03,3.2686]
[1734870593975,2.5,187.13,187.03,3.2686]
[1734870594176,0.93633032,187.12,187.03,3.2686]
[1734870594378,2.6742,187.11,187.1,30.69990824]
[1734870594677,3.61053032,187.11,187.1,30.69990824]
[1734870595471,2.6742,187.11,187.1,30.69990824]
[1734870595672,3.61055778,187.11,187.1,30.69990824]
[1734870598275,3.61055701,187.11,187.1,30.69990824]
[1734870598974,2.6742,187.11,187.1,30.69990824]
[1734870600775,3.61051007,187.11,187.1,30.69990824]
[1734870601376,3.61053053,187.11,187.1,30.69990824]
[1734870602077,3.61053072,187.11,187.1,30.69990824]
[1734870602783,3.61052696,187.11,187.1,30.69990824]
[1734870603279,2.6742,187.11,187.1,30.69990824]
[1734870604381,2.6738,187.14,187.1,30.69990824]
[1734870604579,34.52172445,187.15,187.1,30.69990824]
[1734870604580,37.02172445,187.15,187.1,30.69990824]
[1734870604778,0.93620967,187.14,187.11,3.2622]
[1734870608676,34.52172445,187.15,187.11,3.2622]
[1734870608877,0.93618607,187.14,187.11,3.2622]
[1734870609175,2.6732,187.18,187.11,5.9364]
[1734870609384,0.93606318,187.17,187.11,5.9364]
[1734870610180,0.93606318,187.17,187.13,2.6739]
[1734870610480,2.5,187.2,187.11,3.2622]
[1734870610680,0.93604751,187.19,187.11,3.2622]
[1734870611680,2.5,187.2,187.11,3.2622]
[1734870612084,2.6731,187.19,187.14,2.6737]
[1734870612291,2.5,187.21,187.11,3.2622]
[1734870612584,0.9358718,187.2,187.11,3.2622]
[1734870612784,2.6733,187.18,187.13,2.6739]
[1734870613381,2.6733,187.18,187.14,2.6737]
[1734870613587,2.6733,187.18,187.11,3.2622]
[1734870613787,2.5,187.21,187.11,3.2622]
[1734870614087,2.6733,187.17,187.13,2.6739]
[1734870615187,2.5,187.21,187.12,13.45446899]
[1734870615387,0.93586838,187.2,187.11,3.2622]
[1734870615582,0.93590495,187.19,187.11,3.2622]
[1734870615881,2.6739,187.14,187.11,3.2622]
[1734870616087,2.5,187.17,187.11,3.2622]
[1734870616279,2.5,187.17,187.1,89.58337226]
[1734870616479,2.6742,187.11,187.1,30.69990824]
[1734870617990,2.5,187.13,187.1,30.69990824]
[1734870617991,2.674,187.12,187.1,30.69990824]
[1734870618380,2.5,187.14,187.1,30.69990824]
[1734870618589,2.5,187.15,187.1,30.69990824]
[1734870618785,5.1736,187.16,187.1,30.69990824]
[1734870618984,2.5,187.18,187.1,30.69990824]
[1734870619178,0.93604268,187.17,187.1,30.69990824]
[1734870619383,2.5,187.18,187.1,30.69990824]
[1734870620391,2.5,187.18,187.12,2.674]
[1734870621392,5.1732,187.18,187.12,2.674]
[1734870623000,2.5,187.21,187.1,30.69990824]
[1734870623191,0.9359261,187.2,187.1,30.69990824]
[1734870623392,2.5,187.21,187.1,30.69990824]
[1734870623690,0.93590276,187.2,187.1,30.69990824]
[1734870623892,2.6732,187.19,187.13,2.6738]
[1734870624088,2.6732,187.19,187.14,3.2842]
[1734870625394,2.5,187.22,187.14,3.2842]
[1734870625598,0.93586492,187.21,187.14,3.2842]
[1734870625790,2.6731,187.19,187.14,5.958]
[1734870625990,2.5,187.22,187.14,5.958]
[1734870626297,0.93586493,187.21,187.14,5.958]
[1734870626500,2.6731,187.19,187.14,5.958]
[1734870626904,2.6731,187.19,187.15,2.6736]
[1734870627203,2.6731,187.19,187.14,3.2842]
[1734870627204,2.6726,187.23,187.14,3.2842]
[1734870627608,2.5,187.26,187.15,30.69990824]
[1734870627899,0.93566444,187.25,187.16,2.5]
[1734870628099,2.5,187.26,187.18,2.6731]
[1734870628295,0.93560858,187.25,187.16,2.5]
[1734870628796,2.5,187.28,187.16,2.5]
[1734870629101,0.93557247,187.26,187.16,2.5]
[1734870629703,0.93557247,187.26,187.17,2.6733]
[1734870630506,0.93557247,187.26,187.18,2.6731]
[1734870630703,0.93560962,187.25,187.18,2.6731]
[1734870630902,2.5,187.28,187.18,2.6731]
[1734870631102,0.93560966,187.26,187.17,2.6733]
[1734870631601,0.93561099,187.25,187.17,2.6733]
[1734870631805,2.5,187.28,187.17,2.6733]
[1734870632005,0.93561097,187.26,187.16,5.1734]
[1734870632205,0.93561095,187.25,187.16,5.1734]
[1734870632405,2.5,187.28,187.16,5.1734]
[1734870632701,0.93560962,187.26,187.16,5.1734]
[1734870632906,2.53430962,187.26,187.16,5.1734]
[1734870633205,0.93560962,187.25,187.18,2.6732]
[1734870634210,1.5987,187.26,187.18,2.6732]
[1734870634411,0.93560891,187.25,187.18,2.6732]
[1734870635710,0.93560891,187.25,187.19,2.673]
[1734870636810,1.5987,187.26,187.19,2.673]
[1734870637015,0.93561563,187.25,187.19,2.673]
[1734870637605,0.22793,187.31,187.16,2.5]
[1734870637811,3.43548675,187.3,187.16,2.5]
[1734870638006,0.93548675,187.29,187.16,2.5]
[1734870638214,0.93548675,187.29,187.2,2.6729]
[1734870638511,0.93548675,187.29,187.17,13.40336301]
[1734870639114,0.93548675,187.29,187.17,16.07666301]
[1734870639313,2.5,187.3,187.17,16.07666301]
[1734870639512,2.5,187.3,187.17,2.6733]
[1734870639513,0.93556917,187.29,187.17,2.6733]
[1734870640109,0.93557501,187.28,187.17,2.6733]
[1734870640317,0.93557501,187.27,187.18,2.6732]
[1734870640511,3.43557501,187.26,187.18,2.6732]
[1734870640714,2.5,187.25,187.15,30.69990824]
[1734870641317,2.5,187.25,187.2,2.6728]
[1734870641919,2.5,187.25,187.16,13.40978812]
[1734870642217,2.0,187.28,187.16,13.40978812]
[1734870642419,2.0,187.28,187.17,1.6071]
[1734870642722,2.5,187.29,187.18,2.5]
[1734870643018,0.93548042,187.28,187.18,2.5]